Cogmind - Beta 14 @@@ ROGUE MODE // 2024.08.22 @ 21:28:04 Player: Daffa0360 Result: Destroyed by E5-32K(R) with Subdweller Shrapnel Launcher Performance ------------- Evolutions (0) 0 Regions Visited (3) 600 Robots Destroyed (21) 105 Value Destroyed (366) 366 Prototype IDs (14) 280 Alien Tech Used (0) 0 Bonus (0) 0 TOTAL SCORE: 1351 Bonus ------- None Cogmind --------- Core Integrity 0/250 Matter 300/300 Energy 100/100 System Corruption 0% Temperature Cool (0) Movement Walking (130) Location -10/Subcaves Parts ------- > --- POWER (1) -------- (None) > --- PROPULSION (2) --- Cargo Legs > --- UTILITY (2+2) ---- Small Storage Unit Seismic Detector > --- WEAPON (2) ------- Katana > --- INVENTORY (8) ---- Makeshift Power Source Wheel Hacking Suite Barrage Gun Grenade Launcher Improved Datajack Hammer Peak State ------------ > --- POWER ------------ Deuterium Engine > --- PROPULSION ------- Cargo Legs > --- UTILITY ---------- Small Storage Unit Seismic Detector > --- WEAPON ----------- Medium Laser Katana > --- INVENTORY -------- Makeshift Power Source Hacking Suite Grenade Launcher Improved Datajack Hammer [Rating: 26] Favorites ----------- Power Deuterium Engine Engine Deuterium Engine Propulsion Aluminum Leg Leg Aluminum Leg Wheel Wheel Utility Small Storage Unit Device Improved Terrain Scanner Storage Small Storage Unit Weapon Medium Laser Energy Gun Medium Laser Ballistic Gun Light Assault Rifle Launcher Grenade Launcher Slashing Weapon Katana Build | -11 -10 -10 -10 ------- Run | Yrd Mat Min Sub Slots Evolved . | . . . . Power . | . . . . Propulsion . | . . . . Utility . | . . . . Weapon . | . . . . Parts Attached 15 | 1 1 10 3 Power 2 | . . 2 . Engine 2 | . . 2 . Core . | . . . . Reactor . | . . . . Propulsion 4 | . . 2 2 Treads . | . . . . Leg 2 | . . . 2 Wheel 2 | . . 2 . Hover . | . . . . Flight . | . . . . Utility 2 | 1 . . 1 Device 2 | 1 . . 1 Storage . | . . . . Processor . | . . . . Hackware . | . . . . Protection . | . . . . Artifact . | . . . . Weapon 7 | . 1 6 . Energy Gun 2 | . 1 1 . Energy Cannon . | . . . . Ballistic Gun 2 | . . 2 . Ballistic Cannon . | . . . . Launcher 1 | . . 1 . Special Weapon . | . . . . Impact Weapon . | . . . . Slashing Weapon 2 | . . 2 . Piercing Weapon . | . . . . Special Melee Weapon . | . . . . Unidentified Prototypes . | . . . . Parts Lost 6 | . . 4 2 Power 2 | . . 1 1 Propulsion 1 | . . 1 . Utility 1 | . . 1 . Weapon 2 | . . 1 1 Highest Loss Streak 3 | . . 3 2 To Critical Strikes . | . . . . Average Slot Usage (%) 86 | . 100 91 77 Engine 12 | . 14 13 12 Leg 14 | . 28 12 11 Wheel 6 | . . 11 4 Device 11 | . 14 10 11 Storage 13 | . 14 14 12 Energy Gun 15 | . 28 15 12 Ballistic Gun 1 | . . 2 . Slashing Weapon 9 | . . 9 12 Peak Build Rating 26 | 9 9 14 26 Average Rating 14 | 7 9 11 20 On Entrance 8 | 6 9 9 10 Naked Turns . | . . . . Heaviest Build 19 | 12 12 19 19 Greatest Support 55 | 20 20 20 55 Greatest Overweight (x) 1 | . . 1 1 Average Overweight (x) . | . . . . Largest Inventory Capacity 8 | 8 8 8 8 Average Capacity 8 | 8 8 8 8 Most Carried 8 | 8 8 8 7 Average Carried 6 | 7 7 7 6 Final Capacity 8 | 8 8 8 8 Final Carried 8 | 6 8 7 7 Class Distribution -------------------- 100% | Mutant Dominant Class ---------------- Mutant | -10/Materials Mutant | -10/Mines Mutant | -10/Subcaves Resources | -11 -10 -10 -10 ----------- Run | Yrd Mat Min Sub Matter Collected 401 | 210 . 161 30 Remotely . | . . . . Salvage Created 491 | 100 120 143 128 Parts 38 | 7 6 12 13 Haulers Intercepted . | . . . . Recyclers Shooed . | . . . . Parts Field Recycled . | . . . . Retrieved Matter . | . . . . Parts Self-Destructed 17 | . . . 17 Prevented . | . . . . Kills | -11 -10 -10 -10 ------- Run | Yrd Mat Min Sub Combat Hostiles Destroyed 18 | . 3 8 7 Guns 13 | . 3 3 7 AOE 5 | . . 5 . Classes Destroyed 4 | 2 1 1 . Tunneler 2 | 2 . . . Recycler 1 | 1 . . . Swarmer 13 | . . 6 7 Grunt 5 | . 3 2 . Best Kill Streak 6 | 1 2 6 4 Combat Bots Only 6 | . 2 6 4 Max Kills in Single Turn 3 | 1 1 3 1 Gunslinging . | . . . . Exploded 3 | . . 3 . Melee . | . . . . Uniques/NPCs Destroyed . | . . . . Combat | -11 -10 -10 -10 -------- Run | Yrd Mat Min Sub Hostile Shots Fired 101 | . 11 40 50 Missed 33 | . 3 11 19 Damage Taken 1064 | . 96 441 527 Core 268 | . 33 102 133 Absorbed by Shields . | . . . . Core Remaining (%) 100 | 100 . . . Volleys Fired 57 | 12 10 17 18 Largest 2 | 2 2 2 1 Hottest 100 | 90 90 100 50 Shots Fired 92 | 24 20 30 18 Gun 89 | 24 20 27 18 Cannon . | . . . . Launcher 3 | . . 3 . Special . | . . . . Kinetic 3 | . . 3 . Thermal 86 | 24 20 24 18 Explosive 3 | . . 3 . Electromagnetic . | . . . . Robot Hit Streak 8 | 3 8 6 6 Robot Miss Streak 4 | 2 4 2 4 Penetration Max . | . . . . Secondary Targets 1 | . 1 . . Max Gunslinging Chain 1 | . 1 . . Shots Hit Robots 51 | 10 12 18 11 Core Hits 29 | 4 7 11 7 Critical Kills . | . . . . Critical Parts Destroyed . | . . . . Critical Strikes 4 | 2 . 2 . Burn 4 | 2 . 2 . Melee Attacks 3 | . . 2 1 Impact . | . . . . Slashing 3 | . . 2 1 Piercing . | . . . . Sneak Attacks . | . . . . Combat Hostiles . | . . . . Follow-up Attacks . | . . . . Damage Inflicted 826 | 129 144 416 137 Guns 633 | 129 144 223 137 Cannons . | . . . . Explosions 193 | . . 193 . Melee . | . . . . Ramming . | . . . . Kinetic 9 | . . 9 . Thermal 624 | 129 144 214 137 Explosive 193 | . . 193 . Electromagnetic . | . . . . Impact . | . . . . Slashing . | . . . . Piercing . | . . . . Highest Corruption . | . . . . Average Corruption . | . . . . Corruption Purged . | . . . . Corruption Blocked . | . . . . Overload Shots . | . . . . Overflow Damage 16 | . . 16 . Projectiles . | . . . . Explosions 16 | . . 16 . Melee . | . . . . Knockbacks . | . . . . Impact . | . . . . Kinetic . | . . . . Secondary . | . . . . Self-Inflicted Damage 38 | . . 38 . Shots 1 | . . 1 . Rammed . | . . . . Targets Rammed . | . . . . Kicked . | . . . . Crushed . | . . . . Highest Temperature 436 | 150 222 436 . Average Temperature 136 | 66 89 227 . Received Heat Transfer 309 | . 54 189 66 Effects 6 | . . 6 . Shutdowns 1 | . . 1 . Energy Bleed 3 | . . 3 . Interference 1 | . . 1 . Matter Decay 1 | . . 1 . Siege Activations . | . . . . Robots Corrupted . | . . . . Combat Hostiles . | . . . . Parts Fried . | . . . . Impact Corruptions . | . . . . Robots Melted . | . . . . Combat Hostiles . | . . . . Parts Melted 5 | 1 . 4 . Heat Transferred 2063 | 495 384 777 407 Parts Sabotaged . | . . . . Parts Stolen . | . . . . Parts Stripped . | . . . . Power Chain Reactions . | . . . . Alert | -11 -10 -10 -10 ------- Run | Yrd Mat Min Sub Peak Influence 226 | 15 118 226 . Initial 45 | . 9 45 . Average 120 | 8 68 172 . Maximum Alert Level 1 | . . 1 . Low Security (%) 57 | 100 100 28 . Level 1 42 | . . 71 . Level 2 . | . . . . Level 3 . | . . . . Level 4 . | . . . . Level 5 . | . . . . High Security . | . . . . Max Security . | . . . . Squads Dispatched 1 | . 1 . . Investigation 1 | . 1 . . Extermination . | . . . . Reinforcement . | . . . . Assault . | . . . . Garrison . | . . . . Intercept . | . . . . Searches Triggered . | . . . . Construction Impeded . | . . . . Haulers Reinforced . | . . . . Active Scanning Responses . | . . . . Cargo Convoy Interrupts . | . . . . Stealth | -11 -10 -10 -10 --------- Run | Yrd Mat Min Sub Distress Signals 1 | . 1 . . Communications Jammed . | . . . . Distress Signals . | . . . . Times Spotted 30 | . 5 10 15 Peak Tracking Total 4 | . 2 3 4 Tactical Retreats 3 | . . . 3 Traps | -11 -10 -10 -10 ------- Run | Yrd Mat Min Sub Traps Triggered 4 | . . 1 3 Indirectly . | . . . . Trap Hack Attempts . | . . . . Triggered . | . . . . Disarmed . | . . . . Reprogrammed . | . . . . Reused . | . . . . Traps Extracted . | . . . . Installed . | . . . . Triggered . | . . . . Machines | -11 -10 -10 -10 ---------- Run | Yrd Mat Min Sub Machines Disabled 3 | . . 2 1 Max in Single Turn 2 | . . 2 1 Machines Repaired . | . . . . Machines Dismantled . | . . . . Machines Sabotaged . | . . . . Overloaded Fab Kills . | . . . . Hacking | -11 -10 -10 -10 --------- Run | Yrd Mat Min Sub Machines Accessed 5 | . 3 1 1 Terminals 3 | . 3 . . Fabricators . | . . . . Repair Stations . | . . . . Recycling Units . | . . . . Scanalyzers . | . . . . Garrison Access . | . . . . Total Hacks 17 | . 7 1 9 Successful 13 | . 3 1 9 Failed 4 | . 4 . . Catastrophic 2 | . 2 . . Database Lockouts . | . . . . Manual . | . . . . Terminals 7 | . 7 . . Fabricators . | . . . . Repair Stations . | . . . . Recycling Units . | . . . . Scanalyzers . | . . . . Garrison Access . | . . . . Terminal Hacks 13 | . 3 1 9 Record 8 | . . . 8 Prototype ID Bank 2 | . 2 . . Open Door 1 | . . 1 . Locate Traps 1 | . 1 . . Derelict Proto ID Bank 1 | . . . 1 Fabricator Hacks . | . . . . Repair Station Hacks . | . . . . Recycling Unit Hacks . | . . . . Scanalyzer . | . . . . Garrison Access Hacks . | . . . . Unauthorized Hacks . | . . . . Terminals . | . . . . Fabricators . | . . . . Repair Stations . | . . . . Recycling Units . | . . . . Scanalyzers . | . . . . Garrison Access . | . . . . Data Cores Recovered . | . . . . Used . | . . . . Hacking Detections 3 | . 3 . . Full Trace Events 1 | . 1 . . Feedback Events . | . . . . Feedback Blocked . | . . . . Robot Schematics Acquired . | . . . . Robots Built . | . . . . Authchips . | . . . . Time . | . . . . Total Robot Build Rating . | . . . . Part Schematics Acquired . | . . . . Parts Built . | . . . . Authchips . | . . . . Time . | . . . . Total Part Build Rating . | . . . . Parts Repaired . | . . . . Time . | . . . . Parts Recycled . | . . . . Recycled Matter . | . . . . Retrieved Matter . | . . . . Retrieved Components . | . . . . Parts Scanalyzed . | . . . . Part Schematics Acquired . | . . . . Parts Damaged . | . . . . Bothacking | -11 -10 -10 -10 ------------ Run | Yrd Mat Min Sub Used RIF Installer . | . . . . Robots Hacked . | . . . . Non-combat . | . . . . Combat . | . . . . Robot Hacks Applied . | . . . . Relay Couplers Released . | . . . . Fabnet Peak Effective % . | . . . . Robots Rewired . | . . . . Allies Hacked . | . . . . Hacks Repelled . | . . . . Allies | -11 -10 -10 -10 -------- Run | Yrd Mat Min Sub Total Allies 2 | . . 2 . Largest Group 2 | . . 2 . Highest-Rated Group 56 | . . 56 . Highest-Rated Ally 31 | . . 31 . Total Orders . | . . . . Ally Attacks . | . . . . Total Damage . | . . . . Kills . | . . . . Allies Corrupted . | . . . . Allies Melted . | . . . . Intel | -11 -10 -10 -10 ------- Run | Yrd Mat Min Sub Robot Analysis Total . | . . . . Derelict Logs Recovered 2 | . . 2 . Drone Launches . | . . . . Drone Recoveries . | . . . . Exploration | -11 -10 -10 -10 ------------- Run | Yrd Mat Min Sub Turns Passed 1531 | 138 217 524 652 Spaces Moved 1071 | 50 149 342 530 Core . | . . . . Treads . | . . . . Legs 560 | 50 149 67 294 Wheels 511 | . . 275 236 Hover . | . . . . Flight . | . . . . Fastest Speed 80 | 120 120 80 95 Average Speed 110 | 120 120 99 114 Slowest Speed 130 | 120 120 120 130 Overloaded Moves . | . . . . Propulsion Burnouts . | . . . . Robots Hopped . | . . . . Cave-ins Triggered . | . . . . Exploration Rate (%) 34 | 3 30 67 36 Regions Visited 3 Branch Regions 2 Pre-discovered Areas . | . . . . Known Exits Taken . | . . . . Unknown Exits Taken 3 | 1 1 1 . Scrap Searched 2 | . . 1 1 Spaces Dug . | . . . . Terrain Destroyed 21 | . . 21 . Melee . | . . . . Projectile . | . . . . AOE 21 | . . 21 . Terrain Rammed . | . . . . Walls Destroyed . | . . . . Machines Disabled . | . . . . Actions | -11 -10 -10 -10 --------- Run | Yrd Mat Min Sub Total 1322 | 105 168 491 558 Wait 156 | 38 3 114 1 Move 1068 | 49 148 341 530 Hop . | . . . . Pick Up 13 | 3 4 3 3 Fast Attach 1 | . . 1 . Attach 7 | 1 1 2 3 Detach . | . . . . Swap 7 | . . 7 . Drop 10 | 2 2 4 2 Fire 57 | 12 10 17 18 Melee 3 | . . 2 1 Ram . | . . . . Kick . | . . . . Crush . | . . . . Escape Stasis . | . . . . Rewire . | . . . . Trap . | . . . . Miscellaneous . | . . . . Route ------- -11/Scrapyard -10/Materials -10/Mines (discovered 3 exits: *Mat x2 / *Sub) -10/Subcaves (discovered 1 exit: [*Rec]) History --------- Turn | Location | Event 9 | -11/Scrapyard | Discovered new exit (range 3) 139 | -11/Scrapyard | Entered Materials 275 | -10/Materials | Discovered new exit (range 9) 311 | -10/Materials | Build established: Mutant 356 | -10/Materials | Entered Mines 416 | -10/Mines | Identified exit to Materials 449 | -10/Mines | Met a Derelict who couldn't figure out how to use a Trap Extractor 752 | -10/Mines | Core integrity fell below 50% 784 | -10/Mines | Lost 3 parts (1n1u1w) 786 | -10/Mines | Learned 4 Materials zone layouts 789 | -10/Mines | Discovered exit to Materials (range 5) 876 | -10/Mines | Discovered new exit (range 3) 880 | -10/Mines | Entered Subcaves 968 | -10/Subcaves | Ambushed by Subdwellers from Twisted Machinery 1097 | -10/Subcaves | Visited 4L-MR0's lab 1109 | -10/Subcaves | Found Cargo Legs 1112 | -10/Subcaves | Attached Cargo Legs, gained temporary slots: Utility x2 1420 | -10/Subcaves | Discovered new exit (range 16) 1530 | -10/Subcaves | Disturbed a concealed Subdweller 1531 | -10/Subcaves | Core integrity fell below 20% 1532 | -10/Subcaves | Destroyed by E5-32K(R) with Subdweller Shrapnel Launcher Last Messages --------------- 01339_ Triggered Shrapnel Trap. 01339_ An expanding cloud of shrapnel blasts out in all directions. 01399_ S-10 Pest destroyed. 01408_ Lgt. Assault Rifle fries itself beyond repair. 01411_ Lgt. Ion Engine fries itself beyond repair. 01412_ S-10 Pest destroyed. 01414_ Flight Unit fries itself beyond repair. 01420_ Lgt. Assault Rifle fries itself beyond repair. 01420_ EXIT=FOUND 01421_ Flight Unit fries itself beyond repair. 01472_ XG-CVL(u) tweaks Twisted Machinery. 01530_ C9-0ZB(R) angrily emerges from the Twisted Machinery. 01532_ Med. Laser destroyed. 01532_ Deuterium Engine destroyed. Map ----- +----------------------------------------------------+ | ?????????????????????????????????????? | | ?????????????????????????????????????? | | ?????????????????????????????????????? | | ????????????????????????? ???????????? | | ????????????????????????? ???????????? | | ?????????????????? ????? ???????????? | | ?????????????????# ????? ??????????? | | ????????????????## #????# ??????????? | | ????????????????# ????? ??????????? | | ????????????????# ##???? #?????????? | | ???????????????## ????? ?#####??## | | ???????????????# ?????? ## ### | | ??????????????## #?????? # | | ??????????????# #?????## | | ??????????????# ##???## | | ??????????????# #??## | | ????????????????# #### | | ???????????????## ## ##?# ## | | ???????????????# ### ## # | | ???????????#####< # | | ???#???????# # ### | | ???#$ ?????# ### ### | | ???? ??## #?## ## | | ??????? <#; ; #??# | | ?????????#;;; ;; #??# ### | | ?????""&"# @ ; ## #?##### | | ?????<<<< R ;# #?????# | | ?????<<< R # ## #?????# | | ????<<<< ;# ###### ##????? | | ????# <<< ## #????####????? | | ????###########? ???????????? | | ???????????????# ??????????? ## | | ???????????????### ?????????# ?### | | ?????????????????## #?????????## ???? | | ???????????????????##??????????###???? | | ?????????????????????????????????????? | | ?????????????????????????????????????? | | ?????????????????????????????????????? | | ?????????????????????????????????????? | | ?????????????????????????????????????? | | ?????????????????????????????????????? | | ?????????????????????????????????????? | | ?????????????????????????????????????? | | ?????????????????????????????????????? | | ?????????????????????????????????????? | | ?????????????????????????????????????? | | ?????????????????????????????????????? | | ?????????????????????????????????????? | | ??????????????????????####???????????? | | ?????????????????????## ####????????# | +----------------------------------------------------+ Best States ------------- Heat Dissipation 25 Energy Generation 14 Energy Capacity 275 Matter Stores 300 Matter Capacity 300 Sight Range 16 Terrain Scan Range 16 Terrain Scan Density 10 Evasion (%) 55 Item Schematics ----------------- None Robot Schematics ------------------ None Fabricated ------------ Nothing Alien Tech Used ----------------- None Achievements -------------- None Challenges ------------ None Game ------ Seed DisruptionEncryptedBeacon Manual? 0 Play Time 00:12:04 Cumulative 58.3 hours Start 2024.08.22 @ 21:17:50 End 2024.08.22 @ 21:28:04 Sessions 1 Manual Loads 0 Difficulty Rogue Special Mode None Game No. 96 Rogue 92 Adventurer 4 Explorer 0 Win Type - Total 0 Types 0/0/0/0/0/0/0/0/0 Lore% 27 Gallery% 41 Achievement% 32 Wizard Run 0 Options --------- Layout 2 ASCII 0 Keyboard 0 Movement Mouse Keybinds 0 Fullscreen 2 Font 24/Smallcaps Map View 50x44 Zoom Use 0% Tactical HUD 1 Map Filters NONE Filters NONE Steam 1 RUN: 6bd575dd-24cb-4083-993e-2930b591b52d